bitfinex/quotes_BTCUSD_20250218
["timestamp","ask_amount","ask_price","bid_price","bid_amount"]
[1739862660935,0.156915,95593.0,95586.0,0.156925]
[1739862661129,0.156917,95592.0,95586.0,0.004]
[1739862661329,0.156917,95592.0,95585.0,0.156927]
[1739862662181,0.156915,95594.0,95584.0,0.003]
[1739862662426,0.156915,95593.0,95586.0,0.156926]
[1739862662570,0.156917,95592.0,95584.0,0.15693]
[1739862662766,0.209226,95591.0,95586.0,0.003]
[1739862662975,0.15692,95590.0,95586.0,0.003]
[1739862663172,0.00273218,95590.0,95586.0,0.003]
[1739862663399,0.306928,95585.0,95584.0,0.002]
[1739862663846,0.30963658,95585.0,95584.0,0.002]
[1739862664202,0.30963658,95585.0,95583.0,0.0003408]
[1739862664203,0.15,95584.0,95583.0,0.0003408]
[1739862664625,0.15747344,95584.0,95583.0,0.0003408]
[1739862665246,0.00747344,95584.0,95583.0,0.0003408]
[1739862666652,0.00747344,95584.0,95583.0,0.0013408]
[1739862666864,0.00747344,95584.0,95583.0,0.0023408]
[1739862667718,0.57156044,95584.0,95583.0,0.0023408]
[1739862668121,0.71106673,95584.0,95583.0,0.0023408]
[1739862668734,0.71106673,95584.0,95583.0,0.0013408]
[1739862668934,0.7563399,95584.0,95583.0,0.0013408]
[1739862669313,0.7563399,95584.0,95583.0,0.0003408]
[1739862669666,0.306959,95566.0,95565.0,0.00072]
[1739862670130,0.30966285,95566.0,95565.0,0.00072]
[1739862670975,0.30966285,95566.0,95565.0,0.00172]
[1739862671390,0.30966285,95566.0,95565.0,0.00072]
[1739862672224,0.30966285,95566.0,95565.0,0.00172]
[1739862672637,0.30966285,95566.0,95565.0,0.00272]
[1739862674566,0.15270385,95566.0,95565.0,0.00272]
[1739862675792,0.15270385,95566.0,95565.0,0.0030604]
[1739862676202,0.15270385,95566.0,95565.0,0.0522604]
[1739862677445,0.15270385,95566.0,95565.0,0.0030604]
[1739862679538,0.15689885,95566.0,95565.0,0.0030604]
[1739862681739,0.16162616,95566.0,95565.0,0.0030604]
[1739862683586,0.18462616,95566.0,95565.0,0.0030604]
[1739862685171,0.60591773,95566.0,95565.0,0.0030604]
[1739862685373,0.329982,95552.0,95551.0,0.0004]
[1739862685594,0.329982,95552.0,95551.0,0.00045095]
[1739862685919,0.62848852,95552.0,95551.0,0.00045095]
[1739862686125,0.52920252,95552.0,95551.0,0.00045095]
[1739862686623,0.57671061,95552.0,95551.0,0.00045095]
[1739862686830,0.56072361,95552.0,95551.0,0.00045095]
[1739862687393,0.58120661,95552.0,95551.0,0.00045095]
[1739862687957,0.49461052,95552.0,95551.0,0.00045095]
[1739862688183,0.56128852,95552.0,95551.0,0.00045095]
[1739862688386,0.33193854,95552.0,95551.0,0.00045095]
[1739862688592,0.33193854,95552.0,95533.0,0.027757]
[1739862688593,0.157012,95534.0,95533.0,0.027757]
[1739862688834,0.157012,95534.0,95533.0,0.02780125]
[1739862689368,0.15961381,95534.0,95533.0,0.02780125]
[1739862689811,0.15961381,95534.0,95533.0,0.03180125]
[1739862690030,0.15961381,95534.0,95533.0,0.03214185]
[1739862690383,0.15961381,95534.0,95533.0,0.00438485]
[1739862690613,0.15961381,95534.0,95533.0,8.5e-07]
[1739862690614,1.13806395,95534.0,95533.0,8.5e-07]
[1739862690865,0.53764087,95534.0,95533.0,8.5e-07]
[1739862691063,0.53764087,95534.0,95533.0,0.00500085]
[1739862691199,0.58193259,95534.0,95533.0,1e-08]
[1739862691403,0.15,95514.0,95500.0,1.119e-05]
[1739862691628,0.157065,95502.0,95500.0,1.119e-05]
[1739862691832,0.157065,95502.0,95500.0,0.00045427]
[1739862692033,0.00318691,95501.0,95500.0,0.00045427]
[1739862692811,0.00318691,95501.0,95500.0,0.00445427]
[1739862693028,0.00318691,95501.0,95500.0,0.00245427]
[1739862693243,0.00318691,95501.0,95500.0,0.00845427]
[1739862694197,0.00318691,95501.0,95500.0,0.00645427]
[1739862694454,0.00418691,95501.0,95500.0,0.08865427]
[1739862694700,0.001,95501.0,95500.0,0.08865427]
[1739862694901,0.157055,95508.0,95500.0,0.08165427]
[1739862695128,0.007675,95501.0,95500.0,0.23872227]
[1739862695334,0.001,95501.0,95500.0,0.24572227]
[1739862695543,0.001,95501.0,95500.0,0.23972227]
[1739862695757,0.031474,95515.0,95502.0,0.157064]
[1739862695979,0.001,95501.0,95500.0,0.08065427]
[1739862696243,0.001,95501.0,95500.0,0.08465427]
[1739862696663,0.031474,95515.0,95504.0,0.15706]
[1739862696874,0.031474,95515.0,95505.0,0.10250365]
[1739862697087,0.188517,95515.0,95505.0,0.10250365]
[1739862697292,0.031474,95515.0,95505.0,0.10250365]
[1739862697726,0.157047,95513.0,95505.0,0.10250365]
[1739862698103,0.00318945,95512.0,95505.0,0.10250365]
[1739862698509,0.00318945,95512.0,95505.0,0.10350365]
[1739862698674,0.16023745,95512.0,95505.0,0.10250365]
[1739862699035,0.00318945,95512.0,95505.0,0.10450365]
[1739862699249,0.15,95520.0,95505.0,0.10650365]
[1739862699455,0.031474,95518.0,95511.0,0.157048]
[1739862699657,0.15,95520.0,95508.0,0.209404]
[1739862699859,0.15,95520.0,95508.0,0.10250365]
[1739862700095,0.209382,95519.0,95508.0,0.10250365]
[1739862700509,0.157039,95518.0,95508.0,0.25955665]
[1739862700648,0.15,95521.0,95508.0,0.10250365]
[1739862701271,0.157044,95515.0,95508.0,0.10250365]
[1739862701917,0.15,95521.0,95508.0,0.10250365]
[1739862702083,0.157037,95519.0,95508.0,0.25955665]
[1739862702283,0.157038,95518.0,95508.0,0.25955665]
[1739862702719,0.0001704,95519.0,95508.0,0.10350365]
[1739862702915,0.0001704,95519.0,95509.0,0.10250365]
[1739862703137,0.0001704,95519.0,95510.0,0.15705]
[1739862703441,0.157041,95517.0,95509.0,0.10250365]
[1739862703771,0.00446852,95518.0,95509.0,0.10250365]
[1739862703975,0.00446944,95516.0,95511.0,0.157049]
[1739862704211,0.00446898,95517.0,95509.0,0.10250365]
[1739862704414,0.00805529,95515.0,95509.0,0.10250365]
[1739862705006,0.00805529,95515.0,95512.0,0.157047]
[1739862705211,0.00805529,95515.0,95513.0,0.30544965]
[1739862705385,0.0001704,95519.0,95514.0,0.0777]
[1739862705590,0.0001704,95519.0,95517.0,0.157039]
[1739862705793,0.0001704,95519.0,95518.0,0.10250365]
[1739862706764,0.0001704,95519.0,95518.0,0.25954165]
[1739862708053,0.0001704,95519.0,95518.0,0.26254165]
[1739862708780,0.0001704,95519.0,95518.0,0.25954165]
[1739862709120,0.0001704,95519.0,95518.0,0.10850365]
[1739862710471,0.0001704,95519.0,95518.0,0.006]
[1739862710682,0.00396027,95519.0,95518.0,0.006]
[1739862711695,0.00396027,95519.0,95506.0,0.237257]
[1739862711902,0.00825654,95519.0,95507.0,0.10250365]
[1739862712101,0.0001704,95519.0,95507.0,0.10250365]
[1739862712309,0.157044,95515.0,95507.0,0.10250365]
[1739862712747,0.157047,95513.0,95507.0,0.10250365]
[1739862712933,0.157046,95513.0,95507.0,0.10250365]
[1739862713128,0.00377226,95512.0,95507.0,0.10350365]
[1739862713548,0.157044,95515.0,95507.0,0.10350365]
[1739862713752,0.1572064,95519.0,95518.0,0.001]
[1739862714137,0.0001704,95519.0,95507.0,0.10350365]
[1739862714336,0.157054,95509.0,95507.0,0.001]
[1739862714541,0.157054,95509.0,95507.0,0.005]
[1739862714839,0.209403,95510.0,95502.0,0.0488]
[1739862715062,0.157057,95507.0,95502.0,0.0488]
[1739862716872,0.157057,95507.0,95502.0,0.0518]
[1739862717227,0.157053,95509.0,95502.0,0.0518]
[1739862717416,0.2094,95511.0,95502.0,0.0488]
[1739862717615,0.2094,95511.0,95502.0,0.0518]
[1739862717829,0.2094,95511.0,95502.0,0.0558]
[1739862718200,0.0014,95518.0,95502.0,0.0488]
[1739862718585,0.157063,95503.0,95502.0,0.0518]
[1739862718797,0.157059,95506.0,95502.0,0.0538]
[1739862719160,0.0014,95518.0,95502.0,0.0538]
[1739862719366,0.157056,95507.0,95502.0,0.0518]
[1739862719574,0.15706,95505.0,95502.0,0.0518]
[1739862719930,0.209386,95517.0,95502.0,0.0488]
[1739862720432,0.0014,95518.0,95502.0,0.0488]
[1739862720773,0.0014,95518.0,95502.0,0.0538]
[1739862720971,0.157063,95503.0,95502.0,0.0488]
[1739862721230,0.157063,95503.0,95502.0,0.001]
[1739862721407,0.209408,95508.0,95502.0,0.001]
[1739862721615,0.023,95517.0,95498.0,0.083]
[1739862721821,0.157056,95507.0,95498.0,0.083]
[1739862722400,0.157058,95506.0,95498.0,0.083]
[1739862722554,0.157059,95505.0,95502.0,0.003]
[1739862722805,0.157062,95504.0,95502.0,0.003]
[1739862723840,0.209389,95516.0,95498.0,0.083]
[1739862724044,0.157058,95506.0,95502.0,0.004]
[1739862724243,0.023,95517.0,95502.0,0.004]
[1739862724470,0.023,95517.0,95500.0,0.00079507]
[1739862724677,0.209417,95503.0,95500.0,0.00079507]
[1739862724853,0.157063,95503.0,95502.0,0.009]
[1739862725050,0.157063,95503.0,95502.0,0.005]
[1739862725477,0.157066,95502.0,95500.0,0.00079507]
[1739862725632,0.157066,95502.0,95500.0,0.00179507]
[1739862726910,0.00427039,95501.0,95500.0,0.00179507]
[1739862727671,0.00427039,95501.0,95500.0,0.00079507]
[1739862728308,0.00427039,95501.0,95500.0,0.00579507]
[1739862728735,0.00527039,95501.0,95500.0,0.01279507]
[1739862731231,0.21338663,95501.0,95500.0,0.01279507]
[1739862731695,0.15527039,95501.0,95500.0,0.01279507]
[1739862735467,0.17727039,95501.0,95500.0,0.00579507]
[1739862735679,0.17727039,95501.0,95500.0,0.00079507]
[1739862735890,0.00627039,95501.0,95500.0,0.00079507]
[1739862736310,0.15427039,95501.0,95500.0,0.00079507]
[1739862736489,0.15627039,95501.0,95500.0,0.00079507]
[1739862736850,0.15827039,95501.0,95500.0,0.00079507]
[1739862737270,0.15627039,95501.0,95500.0,0.00079507]
[1739862738186,0.15627039,95501.0,95500.0,0.00179507]
[1739862738473,0.1804051,95501.0,95500.0,0.00179507]
[1739862738699,0.15427039,95501.0,95500.0,0.00079507]
[1739862738940,0.15427039,95501.0,95500.0,0.00179507]
[1739862744098,0.00427039,95501.0,95500.0,0.00179507]
[1739862744330,0.0001704,95511.0,95500.0,0.08179507]
[1739862744501,0.157064,95502.0,95500.0,0.08179507]
[1739862744707,0.03319744,95511.0,95500.0,0.08179507]
[1739862744708,0.00799123,95510.0,95500.0,0.08179507]
[1739862745073,0.157062,95504.0,95500.0,0.08179507]
[1739862745281,0.157063,95503.0,95500.0,0.08179507]
[1739862745488,0.157065,95502.0,95500.0,0.08179507]
[1739862745951,0.157065,95502.0,95500.0,0.00179507]
[1739862746164,0.157063,95504.0,95500.0,0.00179507]
[1739862746372,0.157063,95504.0,95500.0,0.00079507]
[1739862746592,0.157063,95503.0,95500.0,0.00079507]
[1739862746801,0.15,95506.0,95500.0,0.00079507]
[1739862747204,0.157061,95504.0,95500.0,0.00079507]
[1739862747412,0.307059,95506.0,95500.0,0.00079507]
[1739862747617,0.157059,95505.0,95500.0,0.00079507]
[1739862747820,0.157062,95504.0,95500.0,0.00079507]
[1739862748020,0.157063,95503.0,95500.0,0.00079507]
[1739862748431,0.00372882,95502.0,95500.0,0.00079507]
[1739862748855,0.157063,95503.0,95500.0,0.00079507]
[1739862749089,0.00798165,95501.0,95500.0,0.00079507]
[1739862749566,0.00424983,95501.0,95500.0,0.00079507]
[1739862750275,0.157059,95506.0,95500.0,0.00079507]
[1739862750511,0.0042494,95501.0,95500.0,0.00179507]
[1739862751193,0.0042494,95501.0,95500.0,0.00079507]
[1739862752084,0.00798673,95501.0,95500.0,0.00079507]
[1739862752852,0.157064,95502.0,95500.0,0.00079507]
[1739862753092,0.173,95516.0,95500.0,0.00079507]
[1739862753332,0.00736384,95501.0,95500.0,0.00079507]
[1739862753575,0.209404,95509.0,95500.0,0.00179507]
[1739862753576,0.157065,95502.0,95500.0,0.00179507]
[1739862753824,0.00736384,95501.0,95500.0,0.00179507]
[1739862754072,0.00736384,95501.0,95500.0,0.00079507]
[1739862756050,0.00736384,95501.0,95500.0,0.00179507]
[1739862756861,0.16442984,95501.0,95500.0,0.00179507]
[1739862757135,0.16442984,95501.0,95500.0,0.00079507]
[1739862757377,0.16442984,95501.0,95500.0,0.00179507]
[1739862758902,0.16442984,95501.0,95500.0,0.00079507]
[1739862759109,0.16442984,95501.0,95500.0,0.00479507]
[1739862759349,0.16442984,95501.0,95500.0,0.00279507]
[1739862759598,0.16442984,95501.0,95500.0,0.00179507]
[1739862759737,0.16442984,95501.0,95500.0,0.00279507]
[1739862761579,0.00736384,95501.0,95500.0,0.00279507]
[1739862762323,0.00736384,95501.0,95500.0,0.23876307]
[1739862762553,0.0001704,95508.0,95500.0,0.23876307]
[1739862762801,0.0001704,95508.0,95501.0,0.157065]
[1739862763053,0.00737082,95507.0,95501.0,0.157065]
[1739862763322,0.00737082,95507.0,95502.0,0.157064]
[1739862763556,0.00737082,95507.0,95500.0,0.23776207]
[1739862763835,0.00737082,95507.0,95500.0,0.08069507]
[1739862764070,0.00737082,95507.0,95500.0,0.07969507]
[1739862765285,0.00837082,95507.0,95500.0,0.07969507]
[1739862765565,0.00737082,95507.0,95501.0,0.157066]
[1739862765784,0.00837082,95507.0,95500.0,0.00079507]
[1739862766029,0.00837082,95507.0,95500.0,0.15786207]
[1739862766284,0.00937082,95507.0,95500.0,0.00079507]
[1739862766535,0.00937082,95507.0,95501.0,0.157066]
[1739862766778,0.00937082,95507.0,95500.0,0.15786107]
[1739862767514,0.00937082,95507.0,95500.0,0.00079507]
[1739862767725,0.00937082,95507.0,95501.0,0.157065]
[1739862767933,0.00937082,95507.0,95505.0,0.157058]
[1739862768125,0.002,95507.0,95505.0,0.157058]
[1739862768384,0.001,95507.0,95505.0,0.03510934]
[1739862768597,0.0001704,95508.0,95507.0,0.156056]
[1739862768863,0.0001704,95508.0,95506.0,0.10250365]
[1739862769071,0.0001704,95508.0,95506.0,0.25956065]
[1739862769547,0.001,95507.0,95506.0,0.25956065]
[1739862769794,0.0001704,95508.0,95506.0,0.25956065]
[1739862770784,0.0001704,95508.0,95506.0,0.26256065]
[1739862772016,0.0001704,95508.0,95506.0,0.26656065]
[1739862773132,0.0001704,95508.0,95506.0,0.10950365]
[1739862773537,0.00738318,95507.0,95506.0,0.10950365]
[1739862773733,0.0001704,95508.0,95507.0,0.157056]
[1739862775797,0.0001704,95508.0,95507.0,0.161056]
[1739862776262,0.0001704,95508.0,95507.0,0.164056]
[1739862779497,0.0001704,95508.0,95507.0,0.007]
[1739862779998,0.00473667,95508.0,95507.0,0.164056]
[1739862780240,0.0001704,95508.0,95507.0,0.164056]
[1739862782299,0.0001704,95508.0,95507.0,0.34395965]
[1739862784663,0.0001704,95508.0,95507.0,0.26655965]
[1739862784908,0.0001704,95508.0,95507.0,0.007]
[1739862785171,0.0001704,95508.0,95507.0,0.0073408]
[1739862785425,0.00757772,95508.0,95507.0,0.0073408]
[1739862785679,0.00757772,95508.0,95507.0,0.0033408]
[1739862785945,0.00757772,95508.0,95507.0,0.0003408]
[1739862786172,0.00757772,95508.0,95507.0,0.0023408]
[1739862786413,0.00757938,95508.0,95507.0,0.0043408]
[1739862786659,0.00757938,95508.0,95507.0,0.0023408]
[1739862787199,0.00757938,95508.0,95507.0,0.02559669]
[1739862787477,0.00757938,95508.0,95507.0,0.0023408]
[1739862787721,0.0001704,95508.0,95507.0,0.0053408]
[1739862787988,0.00757823,95508.0,95507.0,0.0053408]
[1739862788245,0.00299681,95508.0,95507.0,0.0003408]
[1739862788508,0.00757823,95508.0,95507.0,0.0053408]
[1739862788797,0.00299681,95508.0,95507.0,0.0043408]
[1739862789054,0.01040464,95508.0,95507.0,0.0073408]
[1739862789312,0.00582322,95508.0,95507.0,0.0073408]
[1739862791056,0.00299681,95508.0,95507.0,0.0073408]
[1739862791921,0.01039465,95508.0,95507.0,0.0073408]
[1739862792054,0.0058106,95508.0,95507.0,0.0073408]
[1739862792692,0.00299681,95508.0,95507.0,0.0073408]
[1739862793182,0.06510455,95507.0,95506.0,0.157058]
[1739862793419,0.06510455,95507.0,95501.0,0.157066]
[1739862793654,0.06510455,95507.0,95505.0,0.157058]
[1739862793869,0.00739602,95506.0,95505.0,0.157058]
[1739862794329,0.06510455,95507.0,95505.0,0.157058]
[1739862794330,0.06510455,95507.0,95506.0,0.004]
[1739862794823,0.06510455,95507.0,95505.0,0.157058]
[1739862795338,0.06510455,95507.0,95505.0,0.162058]
[1739862795577,0.19780559,95540.0,95507.0,0.0475]
[1739862795796,0.157029,95524.0,95516.0,0.157041]
[1739862796180,0.00211364,95523.0,95517.0,0.157039]
[1739862796790,0.00211364,95523.0,95508.0,0.10250365]
[1739862796995,0.157035,95520.0,95508.0,0.10250365]
[1739862797203,0.157033,95522.0,95514.0,0.157044]
[1739862797472,0.00209929,95519.0,95515.0,0.157043]
[1739862797676,0.002,95523.0,95514.0,0.10250365]
[1739862797880,0.002,95523.0,95516.0,0.15704]
[1739862797881,0.0056368,95518.0,95516.0,0.15704]
[1739862798088,0.157044,95515.0,95508.0,0.157054]
[1739862798290,0.00353806,95517.0,95511.0,0.157049]
[1739862798498,0.00353944,95514.0,95507.0,0.0475]
[1739862798699,0.0815,95524.0,95507.0,0.0475]
[1739862798700,0.0001704,95508.0,95507.0,0.0475]
[1739862798906,0.0001704,95508.0,95507.0,0.204556]
[1739862799538,0.0001704,95508.0,95507.0,0.0475]
[1739862799739,0.0001704,95508.0,95507.0,0.0485]
[1739862799946,0.00580499,95508.0,95507.0,0.0485]
[1739862800112,0.0022668,95508.0,95507.0,0.0485]
[1739862800514,0.0022668,95508.0,95507.0,0.0495]
[1739862800690,0.0001704,95508.0,95507.0,0.0495]
[1739862800893,0.0022668,95508.0,95507.0,0.0485]
[1739862801149,0.00580499,95508.0,95507.0,0.0475]
[1739862801352,0.0001704,95508.0,95507.0,0.006]
[1739862801975,0.1593208,95508.0,95507.0,0.006]
[1739862802189,0.16285899,95508.0,95507.0,0.006]
[1739862802590,0.16342708,95508.0,95507.0,0.006]
[1739862803229,0.16342708,95508.0,95507.0,0.003]
[1739862803685,0.16342708,95508.0,95507.0,0.004]
[1739862804184,0.16342708,95508.0,95505.0,0.0003408]
[1739862804392,0.157058,95506.0,95505.0,0.0003408]
[1739862804618,0.15971986,95506.0,95505.0,0.0003408]
[1739862805548,0.2391833,95506.0,95505.0,0.0003408]
[1739862805781,0.4131833,95506.0,95505.0,0.0003408]
[1739862806506,0.6677013,95506.0,95505.0,0.0003408]
[1739862806876,0.43022589,95506.0,95505.0,0.0003408]
[1739862807104,0.60855488,95506.0,95505.0,0.0003408]
[1739862807306,0.70443338,95506.0,95505.0,0.0003408]
[1739862807506,0.406266,95501.0,95500.0,0.00079507]
[1739862807708,2.4898936,95501.0,95500.0,0.00079507]
[1739862807939,2.0845536,95501.0,95500.0,0.00079507]
[1739862808086,1.8703596,95501.0,95500.0,0.00079507]
[1739862808283,1.77476234,95501.0,95500.0,0.00079507]
[1739862808512,1.75457334,95501.0,95500.0,0.00079507]
[1739862808928,1.59780134,95501.0,95500.0,0.00079507]
[1739862810157,1.12065134,95501.0,95500.0,0.00079507]
[1739862810988,0.75311234,95501.0,95500.0,0.00079507]
[1739862812812,0.73217834,95501.0,95500.0,0.00079507]
[1739862813759,0.68913436,95501.0,95500.0,0.00079507]
[1739862814091,0.67894936,95501.0,95500.0,0.00079507]
[1739862814300,0.64224136,95501.0,95500.0,0.00079507]
[1739862815904,0.330071,95498.0,95497.0,2.752e-05]
[1739862816135,0.33208134,95498.0,95497.0,0.0001061]
[1739862816796,0.33562599,95498.0,95497.0,0.0001061]
[1739862817095,0.33562599,95498.0,95497.0,0.0021061]
[1739862822737,0.34995999,95498.0,95497.0,0.0021061]
[1739862825075,1.74562199,95498.0,95497.0,0.0021061]
[1739862825275,1.75897899,95498.0,95497.0,0.0021061]
[1739862825929,1.86148264,95498.0,95497.0,0.0021061]
[1739862826959,1.75897899,95498.0,95497.0,0.0021061]
[1739862827788,1.77538747,95498.0,95497.0,0.0021061]
[1739862827991,1.01656747,95498.0,95497.0,0.0021061]
[1739862828217,0.77425047,95498.0,95497.0,0.0021061]
[1739862828401,0.74655247,95498.0,95497.0,0.0021061]
[1739862828609,0.70353047,95498.0,95497.0,0.0021061]
[1739862829780,0.69071747,95498.0,95497.0,0.0021061]
[1739862829936,0.65923947,95498.0,95497.0,0.0021061]
[1739862830317,0.36636847,95498.0,95497.0,0.0021061]
[1739862830519,0.68678747,95498.0,95497.0,0.0021061]
[1739862831426,0.36636847,95498.0,95497.0,0.0021061]
[1739862831851,0.59721847,95498.0,95497.0,0.0021061]
[1739862832272,0.56577847,95498.0,95497.0,0.0021061]
[1739862832881,0.54936999,95498.0,95497.0,0.0021061]
[1739862833089,0.34995999,95498.0,95497.0,0.0021061]
[1739862835150,0.35013029,95498.0,95497.0,0.0021061]
[1739862836877,0.35013029,95498.0,95497.0,0.0016061]
[1739862837139,0.36653856,95498.0,95497.0,0.0016061]
[1739862837347,0.32920456,95498.0,95497.0,0.0016061]
[1739862837558,0.17213356,95498.0,95497.0,0.0016061]
[1739862841214,0.24695505,95498.0,95497.0,0.0016061]
[1739862841419,0.17213356,95498.0,95497.0,0.0016061]
[1739862843727,0.15572529,95498.0,95497.0,0.0016061]
[1739862846395,0.00572529,95498.0,95497.0,0.1284061]
[1739862846818,0.0001703,95498.0,95497.0,0.1273261]
[1739862847021,0.0001703,95498.0,95497.0,0.30049746]
[1739862847273,0.0001703,95498.0,95497.0,0.23017035]
[1739862848108,0.0001703,95498.0,95497.0,0.22964425]
[1739862848323,0.0001703,95498.0,95497.0,0.23164425]
[1739862848566,0.0001703,95498.0,95497.0,0.22964425]
[1739862848774,0.0001703,95498.0,95497.0,0.31720318]
[1739862849265,0.0001703,95498.0,95497.0,0.31520318]
[1739862849470,0.0011703,95498.0,95497.0,0.32020318]
[1739862855060,0.0001703,95498.0,95497.0,0.31520318]
[1739862855270,0.0001703,95498.0,95497.0,0.31020318]
[1739862855476,0.0021703,95498.0,95497.0,0.32120318]
[1739862855892,0.0011703,95498.0,95497.0,0.31620318]
[1739862856099,0.0021703,95498.0,95497.0,0.32120318]
[1739862857689,0.0021703,95498.0,95497.0,0.63812741]
[1739862859685,0.0021703,95498.0,95497.0,0.79519941]
[1739862863868,0.0011703,95498.0,95497.0,0.78919941]
[1739862864277,0.0011703,95498.0,95497.0,0.79119941]
[1739862864484,0.0011703,95498.0,95497.0,0.79719941]
[1739862865050,0.0011703,95498.0,95497.0,0.79119941]
[1739862865546,0.0011703,95498.0,95497.0,0.79819941]
[1739862868445,0.0011703,95498.0,95497.0,0.79119941]
[1739862868805,0.0011703,95498.0,95497.0,0.79819941]
[1739862869638,0.0001703,95498.0,95497.0,0.79119941]
[1739862869845,0.0001703,95498.0,95497.0,0.79819941]
[1739862870067,0.0001703,95498.0,95497.0,0.79119941]
[1739862871416,0.0001703,95498.0,95497.0,0.78419941]
[1739862871653,0.0001703,95498.0,95497.0,0.79119941]
[1739862872113,6e-07,95505.0,95498.0,0.15]
[1739862872348,6e-07,95505.0,95504.0,0.38606465]
[1739862872560,6e-07,95505.0,95504.0,0.53606465]
[1739862872772,0.0819,95549.0,95540.0,0.157002]
[1739862872982,0.01785079,95542.0,95540.0,0.157002]
[1739862873205,0.01785079,95542.0,95540.0,0.25950565]
[1739862873414,0.13003346,95564.0,95540.0,0.25950565]
[1739862873415,0.0819,95564.0,95540.0,0.25950565]
[1739862873623,0.07932513,95570.0,95540.0,0.34060565]
[1739862873820,0.0176783,95555.0,95540.0,0.34060565]
[1739862874037,0.00021649,95541.0,95540.0,0.34060565]
[1739862874854,0.00021649,95541.0,95540.0,0.34160565]
[1739862875056,0.00021649,95541.0,95540.0,0.37391161]
[1739862876949,0.00021649,95541.0,95540.0,0.37591161]
[1739862877204,0.00021649,95541.0,95540.0,0.43011161]
[1739862877375,0.00021649,95541.0,95540.0,0.42711161]
[1739862877576,0.00021649,95541.0,95540.0,0.43311161]
[1739862877944,0.00021649,95541.0,95540.0,0.42811161]
[1739862878059,0.00021649,95541.0,95540.0,0.43511161]
[1739862878479,0.00021649,95541.0,95540.0,0.74503584]
[1739862879536,0.00021649,95541.0,95540.0,0.66393584]
[1739862879943,0.00021649,95541.0,95540.0,0.66493584]
[1739862880696,0.00021649,95541.0,95540.0,0.65793584]
[1739862880944,0.00021649,95541.0,95540.0,0.66993584]
[1739862881196,0.00021649,95541.0,95540.0,0.66293584]
[1739862881408,0.00021649,95541.0,95540.0,0.65793584]
[1739862881611,0.00021649,95541.0,95540.0,0.67193584]
[1739862882003,0.00021649,95541.0,95540.0,0.66493584]
[1739862882848,0.00021649,95541.0,95540.0,0.65793584]
[1739862883269,0.00021649,95541.0,95540.0,0.67193584]
[1739862883694,0.00021649,95541.0,95540.0,0.65793584]
[1739862884116,0.00021649,95541.0,95540.0,0.67193584]
[1739862884339,0.00021649,95541.0,95540.0,0.66493584]
[1739862884856,0.00021649,95541.0,95540.0,0.65793584]
[1739862885130,0.00021649,95541.0,95540.0,0.66493584]
[1739862885672,0.00021649,95541.0,95540.0,0.67193584]
[1739862886963,0.00021649,95541.0,95540.0,0.66493584]
[1739862887233,0.00021649,95541.0,95540.0,0.67193584]
[1739862890543,0.00021649,95541.0,95540.0,0.75253584]
[1739862891039,0.00021649,95541.0,95540.0,1.44133584]
[1739862892339,4.9e-07,95541.0,95540.0,1.46133584]
[1739862892595,4.9e-07,95541.0,95540.0,1.48433584]
[1739862892871,7.9e-07,95541.0,95540.0,1.48433584]
[1739862895656,7.9e-07,95541.0,95540.0,1.50433584]
[1739862895862,0.0799,95581.0,95540.0,1.50433584]
[1739862895863,0.15,95591.0,95585.0,0.156927]
[1739862896040,0.00595539,95589.0,95583.0,0.15693]
[1739862896519,0.00595539,95589.0,95584.0,0.156929]
[1739862896677,0.1812381,95589.0,95582.0,0.156932]
[1739862896853,0.00595539,95589.0,95583.0,0.0156932]
[1739862897056,0.00595539,95589.0,95585.0,0.001]
[1739862897461,0.00595539,95589.0,95583.0,0.0156932]
[1739862897723,0.156923,95588.0,95583.0,0.0156932]
[1739862897937,0.02356639,95589.0,95583.0,0.0156932]
[1739862898141,0.00595539,95589.0,95584.0,0.01661276]
[1739862898323,0.00595539,95589.0,95583.0,0.15693]
[1739862898657,0.00595539,95589.0,95583.0,0.156931]
[1739862898864,0.02353586,95589.0,95583.0,0.156931]
[1739862899450,0.02353586,95589.0,95583.0,0.157931]
[1739862899874,0.18045686,95589.0,95583.0,0.001]
[1739862900088,0.02353586,95589.0,95583.0,0.0586438]
[1739862900476,0.02353586,95589.0,95583.0,0.001]
[1739862900697,0.156925,95587.0,95583.0,0.001]
[1739862900902,0.156923,95588.0,95583.0,0.001]
[1739862901099,0.00245162,95586.0,95583.0,0.001]
[1739862901444,0.00245382,95587.0,95583.0,0.001]
[1739862901660,0.00244942,95585.0,95583.0,0.001]
[1739862901860,0.17803138,95589.0,95583.0,0.001]
[1739862902039,0.00245601,95588.0,95584.0,0.0367181]
[1739862902238,0.15937901,95588.0,95584.0,0.0367181]
[1739862902374,0.15938001,95588.0,95583.0,0.001]
[1739862902779,0.08363346,95586.0,95576.0,0.156942]
[1739862902991,0.08363346,95586.0,95530.0,0.12066277]
[1739862902992,0.15693,95584.0,95566.0,0.31692423]
[1739862903199,0.00243899,95583.0,95571.0,0.10250365]
[1739862903601,0.00243899,95583.0,95581.0,0.156934]
[1739862903867,0.02110938,95589.0,95571.0,0.10250365]
[1739862904010,0.00244998,95588.0,95571.0,0.10250365]
[1739862904213,0.00244998,95588.0,95572.0,0.07070019]
[1739862904408,0.00244998,95588.0,95573.0,0.10250365]
[1739862904617,0.12066277,95583.0,95573.0,0.10250365]
[1739862904816,0.0024389,95582.0,95576.0,0.156942]
[1739862905670,0.156934,95581.0,95573.0,0.25945165]
[1739862905876,0.0024366,95580.0,95574.0,0.04687217]
[1739862906086,0.0024366,95580.0,95566.0,0.31692423]
[1739862906298,0.12066277,95576.0,95567.0,0.10250365]
[1739862906723,0.00354175,95575.0,95570.0,0.156952]
[1739862906935,0.00354175,95575.0,95570.0,0.10250365]
[1739862907568,0.12066277,95576.0,95570.0,0.31177265]
[1739862907773,0.12066277,95576.0,95572.0,0.156948]
[1739862908000,0.00353901,95575.0,95570.0,0.10250365]
[1739862908215,0.156938,95579.0,95571.0,0.156951]
[1739862908428,0.156938,95579.0,95570.0,0.10250365]
[1739862908636,0.00598827,95578.0,95570.0,0.10250365]
[1739862909941,0.16292727,95578.0,95570.0,0.10250365]
[1739862910826,0.00598827,95578.0,95570.0,0.10250365]
[1739862911037,0.16192827,95578.0,95570.0,0.10250365]
[1739862911247,0.00570578,95578.0,95570.0,0.10250365]
[1739862911457,0.156943,95576.0,95570.0,0.10250365]
[1739862911667,0.00217026,95575.0,95570.0,0.10250365]
[1739862911901,0.156937,95580.0,95570.0,0.10250365]
[1739862912111,0.02102934,95579.0,95570.0,0.10250365]
[1739862912331,0.15694,95578.0,95570.0,0.10250365]